{"text_format":"3","workbook":"xlsx","n_sheets":1,"sheets":["Sheet1"],"not_rendered":{"defined_names":1},"read":"whole","date_system":"1900"}

{"sheet":"Sheet1","index":0,"n_rows":37,"n_cols":12,"rows_kept":37,"merged":[[0,0,0,11]]}
["2023年南京信息工程大学暑期“三下乡”社会实践优秀团队初评推荐情况汇总表"]
["学院/校级学生组织","推荐排序","团队名称","实践主题","实践地点","实践时间","实践过程","实践内容简介（500字以内）","团队成员","指导教师","宣传报道","备注"]
["计算机学院、网络空间安全学院",{"$f":"COUNTA($B$2:B2)","v":1},"南京信息工程大学计算机学院、网络空间安全学院青年志愿者协会“青衿志履”小分队","发展成就观察","江苏无锡","2023.7.1-2023.7.7","2023年7月1日前往国家超级计算无锡中心、无锡博物院党史区、徐巷农民俱乐部旧址、荣毅仁纪念馆、中国民族工商业博物馆、无锡国家安全教育公园和无锡滨湖区梅园社区等地开展了参观、采访、宣讲活动","2023年7月1日前往国家超级计算无锡中心、无锡博物院党史区、徐巷农民俱乐部旧址、荣毅仁纪念馆、中国民族工商业博物馆、无锡国家安全教育公园和无锡滨湖区梅园社区等地开展了参观、采访、宣讲活动","团队负责人 浦杨扬 计算机学院、网络空间安全学院 \n队员1\t 袁德聪 软件学院 \n队员2 仲冠文 计算机学院、网络空间安全学院 \n队员3 曹秉宇 计算机学院、网络空间安全学院 \n队员4 徐星宇 电子信息与工程学院 \n队员5 顾友倩 计算机学院、网络空间安全学院 \n队员6 赵恩铭 计算机学院，网络空间安全学院 \n队员7 杨唤元 软件学院 \n队员8 赵德志 计算机学院，网络空间安全学院 \n队员9 于悦 计算机学院、网络空间安全学院 ","王翔","校级：一次\n院级：一次 ","特"]
["计算机学院、网络空间安全学院",{"$f":"COUNTA($B$2:B3)","v":2},"南京信息工程大学计算机学院、网络空间安全学院分团委“忆往思来，向史而新”小分队"," 党史学习教育"," 南京"," 2023.6.29-2023.7.5"," 2023.6.29前往会议室进行了此次社会实践活动的具体方案的讨论，并且合理安排分工。\n2023.6.30团队成员集体前往南京市江北新区红色文化展陈馆进行参观调研。\n2023.7.1团队成员前往高淳镇固城镇前进社区进行实地参观调研。\n2023.7.2小队成员结合线上线下调研的方式，开展有关党史知识的问卷调查。\n2023.7.3团队成员集体观看了电影《1921》，并且在结束后小队成员进行了感悟的交流。\n2023.7.4由队长主讲，进行了线上党史的知识宣讲活动。\n2023.7.5前往会议室进行了此次社会实践活动的调研成果的讨论，对今后的宣传有了更深的想法。","2023.6.29前往会议室进行了此次社会实践活动的具体方案的讨论，并且合理安排分工。\n2023.6.30团队成员集体前往南京市江北新区红色文化展陈馆进行参观调研。\n2023.7.1团队成员前往高淳镇固城镇前进社区进行实地参观调研。\n2023.7.2小队成员结合线上线下调研的方式，开展有关党史知识的问卷调查。\n2023.7.3团队成员集体观看了电影《1921》，并且在结束后小队成员进行了感悟的交流。\n2023.7.4由队长主讲，进行了线上党史的知识宣讲活动。\n2023.7.5前往会议室进行了此次社会实践活动的调研成果的讨论，对今后的宣传有了更深的想法。 "," 负责人 吴怡 计算机学院、网络空间安全学院 成员1 蔡雨阳 计算机学院、网络空间安全学院 成员2 宋宇凡 计算机学院、网络空间安全学院 成员3 包力诚 计算机学院、网络空间安全学院 成员4 田乐云 计算机学院、网络空间安全学院 成员5 聂渝婷 计算机学院、网络空间安全学院 成员6 顾文丽 计算机学院、网络空间安全学院 成员7 祖张越 艺术学院"," 陆燕","院级：一次 ","特"]
["计算机学院、网络空间安全学院",{"$f":"COUNTA($B$2:B4)","v":3},"南京信息工程大学计算机学院2022级金坛区三下乡实践小分队"," 促进乡村振兴","江苏省常州市金坛区尧塘街道迎春村 ","2023.7.18-2023.7.23 ","2023年7月18日前往迎春村委会听村书记介绍、了解村里的情况2023年7月19日前往迎春村实地下乡探寻乡村风景2023年7月20日开展“《习近平谈治国理政》第三卷第九专题”读书会2023年7月21日进行宣讲PPT制作，主题为《反诈宣传》和《乡村振兴的绿色发展之路》2023年7月22日前往迎春村进行线下宣讲，宣讲主题为《反诈宣传》和《乡村振兴的绿色发展之路》2023年7月22日前往迎春村开展读书分享会2023年7月23日进行团队活动总结 "," 2023年7月18日前往迎春村委会听村书记介绍、了解村里的情况2023年7月19日前往迎春村实地下乡探寻乡村风景2023年7月20日开展“《习近平谈治国理政》第三卷第九专题”读书会2023年7月21日进行宣讲PPT制作，主题为《反诈宣传》和《乡村振兴的绿色发展之路》2023年7月22日前往迎春村进行线下宣讲，宣讲主题为《反诈宣传》和《乡村振兴的绿色发展之路》2023年7月22日前往迎春村开展读书分享会2023年7月23日进行团队活动总结","团队负责人 周忱仡 计算机学院 队员1 吴佳乐 物理与光电工程学院 队员2 董文昊 物理与光电工程学院 队员3 曹玉豪 计算机学院 队员4 陈佳曦 电信院 队员5 吴迪 商学院 队员6 任学超 电信院 队员7 景雨恒 计算机学院 "," 杨敏敏"," ","特"]
["计算机学院、网络空间安全学院",{"$f":"COUNTA($B$2:B5)","v":4},"南京信息工程大学计算机学院“邂逅红色金陵”小分队\n\n\n\n"," \n党史学习教育"," 南京","2023.6.29-2023.7.7 "," 2023.06.29前往渡江胜利纪念馆进行参观学习\n2023.06.30前往中共代表团梅园新村纪念馆进行参观学习\n2023.07.01前往抗战胜利纪念馆、侵华日军南京大屠杀遇难同胞纪念馆进行参观学习\n2023.07.02在线上进行党史知识学习交流\n2023.07.03前往南京市江北新区盘城新居进行线下调研活动\n2023.07.04前往南京市鼓楼区白云社区进行党史理论宣讲\n2023.07.05前往南京市浦口区冯墙社区拜访几位老党员","2023.06.29前往渡江胜利纪念馆进行参观学习\n2023.06.30前往中共代表团梅园新村纪念馆进行参观学习\n2023.07.01前往抗战胜利纪念馆、侵华日军南京大屠杀遇难同胞纪念馆进行参观学习\n2023.07.02在线上进行党史知识学习交流\n2023.07.03前往南京市江北新区盘城新居进行线下调研活动\n2023.07.04前往南京市鼓楼区白云社区进行党史理论宣讲\n2023.07.05前往南京市浦口区冯墙社区拜访几位老党员 ","团队负责人 赵同生 计算机学院、网络空间安全学院 队员1 符金琳 大气科学学院 队员2 黄时暄 大气科学学院 队员3 吴超南 大气科学学院 队员4 卞蕾 计算机学院、网络空间安全学院 队员5 马海浪 化学与材料学院 "," 张乐涵","院级：一次\n校级：一次 ","一"]
["计算机学院、网络空间安全学院",{"$f":"COUNTA($B$2:B6)","v":5},"南京信息工程大学计算机学院青年新闻中心“烈火红尘，永远跟党走”南京实践小分队","\n党史学习教育\n","江苏南京\n江苏南通","2023.6.29-2023.7.5","2023年6月29日-7月1日前往梅园新村地点开展了党史学习教育活动\n2023年7月2日-7月3日前往雨花台烈士纪念馆开展了党史学习教育活动","2023年6月29日-7月1日前往梅园新村地点开展了党史学习教育活动\n2023年7月2日-7月3日前往雨花台烈士纪念馆开展了党史学习教育活动","曹文杰 计算机学院、网络空间安全学院 团队负责人\n姜安童 计算机学院、网络空间安全学院 成员\n刘畅 计算机学院、网络空间安全学院 成员\n仇婧怡 计算机学院、网络空间安全学院 成员\n赵德瑞 计算机学院、网络空间安全学院 成员\n李燚 计算机学院、网络空间安全学院 成员\n陈胜男 计算机学院、网络空间安全学院 成员\n陈天乐 计算机学院、网络空间安全学院 成员\n王天熹 计算机学院、网络空间安全学院 成员\n王昌煦 计算机学院、网络空间安全学院 成员","陆永康 南京信息工程大学计算机、网络空间安全学院",null,"一"]
["计算机学院、网络空间安全学院",{"$f":"COUNTA($B$2:B7)","v":6},"南京信息工程大学计算机学院、网络空间安全学院“碳足迹”小分队","\n节能减排宣讲\n","南通","2023.8.5-2023.8.11"," 2023年8月5号至11号，前往南通市城郊花园开展低碳环保宣讲活动"," 2023年8月5号至12号，前往南通市城郊花园开展低碳环保宣讲活动","杨范博文 计算机学院、网络空间安全学院 团队负责人\n谢淼淼 教师教育学院 成员\n吉叙源 自动化学院 成员\n冯子睿 自动化学院 成员\n徐楠 长望学院 成员\n王凯 计算机学院、网络空间安全学院","相晨 计算机学院、网络空间安全学院",null,"一"]
["计算机学院、网络空间安全学院",{"$f":"COUNTA($B$2:B8)","v":7}," 南京信息工程大学计算机学院、网络空间安全学院“三下乡之寻访红色精神”小分队","党史学习教育","宿迁","2023.7.15-\n2023.7.20","7.21日，江苏省盐城市北蒋街道合兴村以及周边村庄","7.21日，江苏省盐城市北蒋街道合兴村以及周边村庄","负责人 史明澔 计算机学院网络空间安全学院 成员1 李金羽 计算机学院网络空间安全学院 成员2 胡文一 水文院 成员3 吴振飞 计算机学院网络空间安全学院","杨敏敏",null,"一"]
["计算机学院、网络空间安全学院",{"$f":"COUNTA($B$2:B9)","v":8}," 南京信息工程大学计算机学院乡村腾飞小分队","\n乡村振兴促进","淮安","2023.7.6-\n2023.7.12","2023年7月7日前往涟\n水县宜稳家庭农场地点开展了探索家庭农场模式在乡村振兴中的作用与挑战活动","2023年7月7日前往涟水县宜稳家庭农场地点开展了探索家庭农场模式在乡村振兴中的作用与挑战活动","郑宜扬 团队负责人 计算机学院，网络空间安全学院 周瑞衡 队员1 计算机学院，网络空间安全学院\n邢一鸣 队员2 计算机学院，网络空间安全学院 祝园懿 队员3 软件学院 赵兴宇 队员4 计算机学院，网络空间安全学院","张乐涵",null,"二"]
["计算机学院、网络空间安全学院",{"$f":"COUNTA($B$2:B10)","v":9}," 南京信息工程大学计算机学院学院红行小分队","\n党史学习教育\n","南京","2023.6.27-2023.7.3","2023年6月27日前往秦淮区开展了理论学习活动","2023年6月28日前往秦淮区开展了理论学习活动","印鑫垒 计算机学院、网络空间安全学院 团队负责人\n吕灿 自动化学院 成员\n夏鑫 自动化学院 成员\n孙欣格 自动化学院 成员\n任瑶瑶 商学院 成员","李家 计算机学院 17622601258",null,"二"]
["计算机学院、网络空间安全学院",{"$f":"COUNTA($B$2:B11)","v":10},"南京信息工程大学计算机学院网络空间安全学院夏日寻红小分队","党史学习教育\n","江苏南京\n江苏盐城","2023.7.1—2023.7.15","7.1参观南京红色广场\n7.3参观南京红色广场纪念馆\n7.4参观了南京工运纪念馆\n7.8在大丰烈士陵园通过祭扫活动来缅怀革命先烈\n7.10在大丰施耐庵公园进行志愿活动\n7.12参观了位于江苏盐城大丰的革命烈士纪念馆\n7.15在江苏盐城大丰草堰镇开展了一次党史学习实践活动","7.1参观南京红色广场\n7.3参观南京红色广场纪念馆\n7.4参观了南京工运纪念馆\n7.8在大丰烈士陵园通过祭扫活动来缅怀革命先烈\n7.10在大丰施耐庵公园进行志愿活动\n7.12参观了位于江苏盐城大丰的革命烈士纪念馆\n7.15在江苏盐城大丰草堰镇开展了一次党史学习实践活动","程顺宇 计算机学院学院、网络空间安全学院 团队负责人\n陶静 计算机学院学院、网络空间安全学院 成员\n王健铭 软件学院 成员","张乐涵 南京信息工程大学计算机、网络空间安全学院","省级：1次","二"]
["计算机学院、网络空间安全学院",{"$f":"COUNTA($B$2:B12)","v":11},"南京信息工程大学计算机学院“杨二十大精神，追红色足迹“小分队","党史学习教育","江苏南京","2023.7.1-2023.7.7","2023年7月1日前往南京市雨花台烈士纪念馆开展志愿活动，7月2日前往苏州烈士陵园开展志愿活动，7月3日前往苏州沙家浜芦苇荡风景区开展志愿活动","2023年7月1日前往南京市雨花台烈士纪念馆开展志愿活动，7月2日前往苏州烈士陵园开展志愿活动，7月3日前往苏州沙家浜芦苇荡风景区开展志愿活动","汪楷臣 计算机学院、网络空间安全学院 团队负责人\n高一民 计算机学院、网络空间安全学院 成员\n陈金正 计算机学院、网络空间安全学院 成员","刘杰 南京信息工程大学计算机学院",null,"二"]
["计算机学院、网络空间安全学院",{"$f":"COUNTA($B$2:B13)","v":12},"南京信息工程大学计算机学院“绿水青山”小分队","\n节能减排宣讲","江苏南京","2023.7.15-2023.7.25","7 月 1 5 日 ， 为 了解 社 区 居 民 对 于 垃 圾 分 类 、 低 碳 生 活 的 了解程度，我们将进行随机问卷调查。通过此次调查走 访，我们将了解到社区居⺠对环保问题的认知程度，以及 现有环保措施的落实情况，为后续的宣传活动提供实际依 据 本日主要进行了问卷讨论和设计。\n7月16 日，少量的发布了初次的问卷，并仔细分析讨 论，探究其本质和展示出的优劣。\n7 月 1 7 日， 根 据 先 前 调 查 结 果， 重 新 设 计 新 的 问 卷 ， 这 次问卷将更加具体和深入。\n7 月 1 8 日， 活 动 准 备 期 间 ， 我 们 对 调 查 结 果 进 行 深 入 分析和整理。查找相关知识，对不同环保措施的实际效果 进行评估和比较，并为后续宣传活动和宣讲提供指导和支 持 。7 月19 日，我们根据的搜集到的信息和问卷结果进行 宣 讲内容的初次制作。\n7 月20 日，我们进行了内部宣讲预演，并修改了部分 1的宣讲内容。\n7 月21日，在宣讲环节中，我们为社区居⺠介绍有效 的节能减排措施，以及如何通过行动积极参与到环保事业 中来。根据调查结果，我们对重点关注社区居⺠最为关心 的环保问题，并针对具体情况，提供实用的行动方案和环 保知识。\n7 月22 日，我们和社区相关部⻔进行深入交流，分享 前期调研和宣讲活动中的收获和体会，探讨社区环保问题 的解决方案，并适当提出我们的建议。通过多方协作，共 同 推动环保 事业向前发展。\n7 月 2 3 日， 继 续 开 展 2 2 日 的 后 续 活 动 内 容 。\n7 月24 日，在后期总结中，我们对会对此次活动进行 综 合评估， 并总结 实践心得体会。\n7月25 日，回顾整个实践运动，并制作视频和结题报 告，通过不断反思与分享，不断提高我们的环保素养和实 践能力。我们将继续热心参与社区环保事业，在为美丽家园的建设中，贡献我们的力量。","7 月 1 5 日 ， 为 了解 社 区 居 ⺠ 对 于 垃 圾 分 类 、 低 碳 生 活 的 了解程度，我们将进行随机问卷调查。通过此次调查走 访，我们将了解到社区居⺠对环保问题的认知程度，以及 现有环保措施的落实情况，为后续的宣传活动提供实际依 据 本日主要进行了问卷讨论和设计。\n7月16 日，少量的发布了初次的问卷，并仔细分析讨 论，探究其本质和展示出的优劣。\n7 月 1 7 日， 根 据 先 前 调 查 结 果， 重 新 设 计 新 的 问 卷 ， 这 次问卷将更加具体和深入。\n7 月 1 8 日， 活 动 准 备 期 间 ， 我 们 对 调 查 结 果 进 行 深 入 分析和整理。查找相关知识，对不同环保措施的实际效果 进行评估和比较，并为后续宣传活动和宣讲提供指导和支 持 。7 月19 日，我们根据的搜集到的信息和问卷结果进行 宣 讲内容的初次制作。\n7 月20 日，我们进行了内部宣讲预演，并修改了部分 1的宣讲内容。\n7 月21日，在宣讲环节中，我们为社区居⺠介绍有效 的节能减排措施，以及如何通过行动积极参与到环保事业 中来。根据调查结果，我们对重点关注社区居⺠最为关心 的环保问题，并针对具体情况，提供实用的行动方案和环 保知识。\n7 月22 日，我们和社区相关部⻔进行深入交流，分享 前期调研和宣讲活动中的收获和体会，探讨社区环保问题 的解决方案，并适当提出我们的建议。通过多方协作，共 同 推动环保 事业向前发展。\n7 月 2 3 日， 继 续 开 展 2 2 日 的 后 续 活 动 内 容 。\n7 月24 日，在后期总结中，我们对会对此次活动进行 综 合评估， 并总结 实践心得体会。\n7月25 日，回顾整个实践运动，并制作视频和结题报 告，通过不断反思与分享，不断提高我们的环保素养和实 践能力。我们将继续热心参与社区环保事业，在为美丽家 园 的建设中，贡献我们的力量。","沈洋 计算机学院 团队负责人\n蒋文涵 软件学院 成员\n赵梓发 电子与信息工程学院 成员","刘杰 南京信息工程大学计算机学院",null,"二"]
["计算机学院、网络空间安全学院",{"$f":"COUNTA($B$2:B14)","v":13},"南京信息工程大学软件学院“op3”小分队","\n发展成就观察\n","江苏苏州","2023.8.9-2023.8.15","2023年8月9日前往葑南社区开展了朗诵国学经典，普及科学知识的活动","2023年8月9日前往葑南社区开展了朗诵国学经典，普及科学知识的活动","东宇杰 计算机学院 团队负责人\n钮诚昊 长望学院 成员\n于陈宇 计算机学院，网络空间安全学院 成员","杨敏敏 南京信息工程大学计算机学院",null,"二"]
["计算机学院、网络空间安全学院",{"$f":"COUNTA($B$2:B15)","v":14},"南京信息工程大学计算机学院“扎根基层”三下乡小分队","发展成就观察","盐城","2023.7.17-2023.7.23","2023年7月17日到7月23日前往梅苏村、淮剧小镇等地开展了“让青春之花在基层绽放”“三下乡”实践活动","2023年7月17日到7月24日前往梅苏村、淮剧小镇等地开展了“让青春之花在基层绽放”“三下乡”实践活动","李嘉伟 计算机学院、网络空间安全学院 团队负责人\n崔欣怡 人工智能学院 成员      吕正杰 自动化学院 成员        朱俊臣 计算机学院、网络空间安全学院  成员               刘思成 人工智能学院 成员","相晨 南京信息工程大学计算机学院、网络空间安全学院",null,"二"]
["计算机学院、网络空间安全学院",{"$f":"COUNTA($B$2:B16)","v":15},"南京信息工程大学\"泰州新农耕\"志愿者队","乡村振兴促进","泰州市高港区白马镇","2023.7.24-2023.7.30","7月24日，我们深入学习了乡村振兴的重要论述，并与村民进行了深入的交流。7月25日，我们参观了农田和工厂，了解了乡村的产业结构和发展现状，并提出了一些建设性的建议。7月26日，我们参与了农田劳作，并进行了团队讨论。7月27日，我们在白马镇开展了环境美化活动。7月28日，我们在白马镇组织了乡风文明讲座，并进行了一些乡风文明的活动。7月29日，我们在白马镇开展了生态文明建设活动。7月30日，我们对乡村的公共服务设施进行了实地考察，并对村里的图书馆进行了升级改造。","7月24日，我们深入学习了乡村振兴的重要论述，并与村民进行了深入的交流。7月25日，我们参观了农田和工厂，了解了乡村的产业结构和发展现状，并提出了一些建设性的建议。7月26日，我们参与了农田劳作，并进行了团队讨论。7月27日，我们在白马镇开展了环境美化活动。7月28日，我们在白马镇组织了乡风文明讲座，并进行了一些乡风文明的活动。7月29日，我们在白马镇开展了生态文明建设活动。7月31日，我们对乡村的公共服务设施进行了实地考察，并对村里的图书馆进行了升级改造。","于皓玮 计算机学院、网络空间安全学院 团队负责人\n罗镇卿 管理工程学院 成员\n汤睿杰 电子与信息工程学院 成员\n刘书涵 计算机学院、网络空间安全学院 成员\n","杨敏敏 计算机学院、网络空间安全学院",null,"二"]
["计算机学院、网络空间安全学院",{"$f":"COUNTA($B$2:B17)","v":16},"南京信息工程大学计算机学院“星星之火”小分队","党史学习教育","宿迁","2023.7.15-2023.7.20","2023.8.11-2023.8.17前往 雨花台、组员各自家乡革命纪念馆开展活动","2023.8.11-2023.8.17前往 雨花台、组员各自家乡革命纪念馆开展活动","刘星雨 计算机学院、网络空间安全学院 团队负责人\n李敏雪 自动化学院 成员\n施铸恩 自动化学院 成员\n孙雨欣 文学院 成员\n沈周 计算机学院、网络空间安全学院 成员","杨敏敏，计算机学院、网络空间安全学院，18120193636",null,"二"]
["计算机学院、网络空间安全学院",{"$f":"COUNTA($B$2:B18)","v":17},"南京信息工程大学计算机学院“忆党史，扬精神”小分队","1.理论普及宣讲\n2.党史学习教育\n4.发展成就观察\n6.信大精神宣讲\n","扬州","2023.6.29-2023.7.2","2023年7月1日前往仙城中学开展了二十大宣讲以及介绍南信大活动；2023年7月22日前往仙城中学以及校外开展了问卷调查活动；2023年7月23日前往江都不同地点开展了采访人们对发展成就感受活动；2023年7月24日前往烈士陵园开展探寻红色足迹活动；2023年7月25日前往江都不同地点开展采访部分老人活动；2023年7月30日开展整理数据，集中讨论分析，总结此次三下乡活动","2023年7月1日前往仙城中学开展了二十大宣讲以及介绍南信大活动；2023年7月22日前往仙城中学以及校外开展了问卷调查活动；2023年7月23日前往江都不同地点开展了采访人们对发展成就感受活动；2023年7月24日前往烈士陵园开展探寻红色足迹活动；2023年7月25日前往江都不同地点开展采访部分老人活动；2023年7月31日开展整理数据，集中讨论分析，总结此次三下乡活动","崔甜甜 计算机学院、网络空间安全学院 团队负责人\n洪天乐 商学院 成员\n冷明宇 雷丁学院 成员\n潘恒越 沃特福德学院 成员\n徐奕然 物理与光电工程学院 成员\n宦维晋 计算机学院、网络空间安全学院 成员\n尹梦妍 计算机学院、网络空间安全学院 成员\n佘雨杭 计算机学院、网络空间安全学院 成员","杨敏敏 计算机学院、网络空间安全学院 18120193636","院级：1次","二"]
["计算机学院、网络空间安全学院",{"$f":"COUNTA($B$2:B19)","v":18},"南京信息工程大学计算机学院，网络空间安全学院阿里嘎多美羊羊桑小分队","党史学习教育","江苏常州","2023.8.07-2023.8.14","2023年8月8日前往常武第一党支部开展了三下乡活动，并做实际记录和拍摄活动，了解革命文化和历史，创作诗歌等内容，并走访了解多家纪念馆和了解当地实际情况，进行走访调查和。","2023年8月9日前往常武第一党支部开展了三下乡活动，并做实际记录和拍摄活动，了解革命文化和历史，创作诗歌等内容，并走访了解多家纪念馆和了解当地实际情况，进行走访调查和。","黄喆 计算机学院、网络空间安全学院 团队负责人\n周灵琳 商学院 成员\n张佳一 电子信息与工程学院 成员","相晨 计算机学院，网络空间安全学院","院级：1次","二"]
["计算机学院、网络空间安全学院",{"$f":"COUNTA($B$2:B20)","v":19},"南京信息工程大学计算机学院网络空间安全信火相传小分队","乡村振兴促进","盐城","2023.8.5-2023.8.11","2023年8月5日前往盐城市盐都区楼王镇庆丰村开展了“三下乡”乡村振兴促进活动","2023年8月6日前往盐城市盐都区楼王镇庆丰村开展了“三下乡”乡村振兴促进活动","顾志玺 计算机学院、网络空间安全学院 团队负责人\n许轶凡 计算机学院、网络空间安全学院 成员\n倪清 电子信息与工程学院 成员","相晨 计算机学院、网络空间安全学院",null,"三"]
["计算机学院、网络空间安全学院",{"$f":"COUNTA($B$2:B21)","v":20},"南京信息工程大学计算机学院“建设之路”小分队","乡村振兴，共建富强金湖","江苏省金湖县","2023.8.1-2023.8.13","帮助老人卖菜。帮助建筑工人搬运物资。帮助工人读取图纸信息。学习建筑相关的知识","帮助老人卖菜。帮助建筑工人搬运物资。帮助工人读取图纸信息。学习建筑相关的知识","邹杨和 计算机学云、网络空间安全学院 团队负责人\n丁劲程 计算机学院、网络空间安全学院 成员\n蒋心恺 计算机学院、网络空间安全学院 成员\n周一然 长望学院 成员\n戴浩 长望学院 成员\n王婷妍 计算机学院、网络空间安全学院 成员\n谢杨柠 计算机学院、网络空间学院 成员\n雷润 计算机学院、网络空间安全学院 成员","朱文镇 计算机学院、网络空间安全学院",null,"三"]
["计算机学院、网络空间安全学院",{"$f":"COUNTA($B$2:B22)","v":21},"南京信息工程大学计算机学院南京三下乡实践小分队","党史学习教育","南京","2023.7.5-2023.7.12","2023年7月5日前往黄桥战役纪念馆开展了党史学习教育活动","2023年7月6日前往黄桥战役纪念馆开展了党史学习教育活动","宋一舟 计算机学院、网络空间安全学院 团队负责人\n朱正洋 计算机学院、网络空间安全学院 成员\n刘志远 计算机学院、网络空间安全学院 成员","李家 计算机学院、软件学院、网络空间安全学院",null,"三"]
["计算机学院、网络空间安全学院",{"$f":"COUNTA($B$2:B23)","v":22},"南京信息工程大学计算机学院“重温历史，探寻先贤”张謇之旅暑期实践小队","\n党史学习教育\n","海门","2023.6.29-2023.7.5","6-29 从学校出发，十人小队一起去往海门，同时分配任务，组织材料。\n6-30 线下去往张謇纪念馆学习，参观了整个纪念馆，了解张謇先生的生平事迹，小队进行合影后，开展实践活动，张謇先生的事迹引发了大家的深入思考，大家也深深地被先生的精神所感动。\n7-1 去往张謇先生的故居进行参观，参观结束后队员们对两天的感悟进行交流与思考，并撰写相关的材料\n7-2 去往当地的其他景点柳西半街和颐生酒厂进行了参观，深刻体会了当地的人文与文旅行业的发展，深入了解了实业产业对经济发展的关键作用\n7-3 走访当地的政府与民居，在和当地居民的闲聊中了解到了海门当地的发展历史与人文特色，被当地的风土人情所深深感染\n7-4 小队整理几天的图片与视频资料，并对材料进行总结与统计，同时组内进行讨论交流，研究张謇先生的生平与精神\n7-5 撰写报告与日记，完成后返回","6-29 从学校出发，十人小队一起去往海门，同时分配任务，组织材料。\n6-30 线下去往张謇纪念馆学习，参观了整个纪念馆，了解张謇先生的生平事迹，小队进行合影后，开展实践活动，张謇先生的事迹引发了大家的深入思考，大家也深深地被先生的精神所感动。\n7-1 去往张謇先生的故居进行参观，参观结束后队员们对两天的感悟进行交流与思考，并撰写相关的材料\n7-2 去往当地的其他景点柳西半街和颐生酒厂进行了参观，深刻体会了当地的人文与文旅行业的发展，深入了解了实业产业对经济发展的关键作用\n7-3 走访当地的政府与民居，在和当地居民的闲聊中了解到了海门当地的发展历史与人文特色，被当地的风土人情所深深感染\n7-4 小队整理几天的图片与视频资料，并对材料进行总结与统计，同时组内进行讨论交流，研究张謇先生的生平与精神\n7-6 撰写报告与日记，完成后返回","孙佳豪 计算机学院、网络空间安全学院 团队负责人\n蔡志豪 计算机学院、网络空间安全学院 成员\n马金苏 人工智能学院 成员\n施昊楠 人工智能学院 成员\n陈骁龙 软件学院 成员\n谢易辰 软件学院 成员\n朱雨萍 计算机学院、网络空间安全学院 成员\n王容 计算机学院、网络空间安全学院 成员\n刘垲藤 自动化学院 成员\n王思韵 自动化学院 成员","张乐涵 计算机学院、网络空间安全学院",null,"三"]
["计算机学院、网络空间安全学院",{"$f":"COUNTA($B$2:B24)","v":23},"南京信息工程大学计算机学院、网络空间安全学院帆起未来，行随帆动小分队","\n党史学习教育\n","江苏靖江","2023.7.20-2023.7.26","2023年7月20日前往靖江市东线第一帆渡江战役纪念公园报到并进行团建活动\n2023年7月21日前往靖江市东线第一帆渡江战役纪念公园参观\n2023年7月23日前往靖江市东线第一帆渡江战役纪念公园开展专题讲座\n2023年7月24日前往靖江市东线第一帆渡江战役纪念公园\n2023年7月25日前往靖江市东线第一帆渡江战役纪念公园\n2023年7月26日前往靖江市东线第一帆渡江战役纪念公园","2023年7月20日前往靖江市东线第一帆渡江战役纪念公园报到并进行团建活动\n2023年7月21日前往靖江市东线第一帆渡江战役纪念公园参观\n2023年7月23日前往靖江市东线第一帆渡江战役纪念公园开展专题讲座\n2023年7月24日前往靖江市东线第一帆渡江战役纪念公园\n2023年7月25日前往靖江市东线第一帆渡江战役纪念公园\n2023年7月26日前往靖江市东线第一帆渡江战役纪念公园","团队负责人\t魏泽炜\t计算机学院网络空间与安全学院\t计算机科学与技术 队员1\t胡冠宇\t电子与信息工程学院\t通信工程 队员2\t吴江龙\t自动化学院\t自动化","张乐涵 计算机学院、网络空间安全学院",null,"三"]
["计算机学院、网络空间安全学院",{"$f":"COUNTA($B$2:B25)","v":24},"南京信息工程大学计算机学院、网络空间学院“碳足迹”小分队","\n节能减排宣讲","南通","2023.8.5-\n2023.8.11","2023.8.5-2023.8.11在南通市如皋市城市花园\n社区举行低碳环保宣讲活动","2023.8.5-2023.8.11在南通市如皋\n市城市花园社区举行低碳环保宣讲活动","负责人 汤范博文 计算机学院、网络空间安全学院 成员1 谢淼焱 教师教育学院 成员2 吉叙源 自动化学院 成员3 冯子睿 自动化学院 成员4 徐楠 长望学院长望学院 成员5 王凯 计算机学院、网络空间安全学院","相晨",null,"三"]
["计算机学院、网络空间安全学院",{"$f":"COUNTA($B$2:B26)","v":25},"南京信息工程大学计算机学院网络空间安全学院红色文化追寻三下乡小分队","党史学习教育","贵阳\n南京","2023.7.5-2023.7.7\n,2023.8.2-2023.8.5","2023年7月6日至6日前往侵华日军南京大屠杀遇难同胞纪念馆开展了讲解、观影活动；2023年8月2日至5日前往贵州庆隆建筑劳务有限公司开展了实地调研、座谈会等活动","2023年7月6日至6日前往侵华日军南京大屠杀遇难同胞纪念馆开展了讲解、观影活动；2023年8月2日至5日前往贵州庆隆建筑劳务有限公司开展了实地调研、座谈会等活动","团队负责人 刘欣芸 计算机学院网络空间安全学院 队员1 李玉馨 计算机学院网络空间安全学院","刘晓峰",null,"三"]
["计算机学院、网络空间安全学院",{"$f":"COUNTA($B$2:B27)","v":26},"南京信息工程大学计算机学院“铁军魂，盐城红”小分队","党史学习教育","盐城","2023.7.31-2023.8.3","2023年7月31日前往盐城中学开展了参观铁军纪念馆和为高中生宣讲铁军文化活动","2023年8月1日至8月3日于新四军纪念馆参与三天志愿者活动","负责人\t梁坤\t计算机学院，网络空间安全学院\t计算机类 成员1\t丁甲\t计算机学院，网络空间安全学院\t计算机类 成员2\t沈宇航\t雷丁学院\t数据科学与大数据技术 成员3\t吴坤颖\t教师教育学院\t英语(师范) 成员4\t陆蕾蕾\t商学院\t工商管理 成员5\t刘豪\t计算机学院，网络空间安全学院\t计算机类 成员6\t徐泽皓\t长望学院\t电子信息类(与中国科学院大学联合培养) 成员7\t刘昱希\t龙山书院\t大气科学类 成员8\t范政\t龙山书院\t大气科学类 成员9\t朱士昕\t电子与信息工程学院\t电子信息类","杨敏敏 计算机学院，网络空间安全学院 18120193636",null,"三"]
["计算机学院、网络空间安全学院",{"$f":"COUNTA($B$2:B28)","v":27},"南京信息工程大学计算机学院红行小队","\n党史学习教育\n","南京","2023.6.27-2023.7.3","2023年6月27日前往秦淮区开展了理论学习活动","2023年6月28日前往秦淮区开展了理论学习活动","印鑫垒 计算机学院、网络空间安全学院 团队负责人\n吕灿 自动化学院 成员\n夏鑫 自动化学院 成员\n孙欣格 自动化学院 成员\n任瑶瑶 商学院 成员","李家 计算机学院 17622601258",null,"三"]
["计算机学院、网络空间安全学院",{"$f":"COUNTA($B$2:B29)","v":28},"南京信息工程大学计算机学院宿管会“踏寻红色记忆”南京实践小分队","\n党史学习教育\n"," 南京","2023.6.28-2023.7.31 "," 2023.6.28-2023.7.31 中共代表梅园新村纪念馆\n雨花台烈士陵园\n渡江胜利纪念馆\n南通通州区烈士陵园\n红十四军公园","  2023.6.28-2023.7.31 中共代表梅园新村纪念馆\n雨花台烈士陵园\n渡江胜利纪念馆\n南通通州区烈士陵园\n红十四军公园","团队负责人\t张帅\t计算机学院\t计算机科学与技术 队员1\t沈晓阳\t计算机学院\t计算机科学与技术 队员2\t季肖洋\t计算机学院\t软件工程 队员3\t张灿\t计算机学院\t计算机大类 队员4\t薛传朝\t计算机学院\t计算机大类 队员5\t张宇驰\t计算机学院\t计算机大类 队员6\t仇展鹏\t计算机学院\t物联网 "," 刘杰 计算机学院、网络空间安全学院"," ","三"]
["计算机学院、网络空间安全学院",{"$f":"COUNTA($B$2:B30)","v":29},"南京信息工程大学计算机学院、网络空间安全学院“绿色之路”小分队"," 节能减排宣讲","江苏东台 ","2023.7.29-2023.8.4 ","2023年7月29日在滨河社区进行节能减排宣讲，并参与迎礼八一活动，此后，制作以低碳节能减排为主题的宣传单在社区内分发讲解，在8月4日上午又参与滨河社区的天然气正确使用的宣传，于当日傍晚举办小型知识问答活动。其中部分活动照片刊登于滨河社区公众号。 ","2023年7月29日在滨河社区进行节能减排宣讲，并参与迎礼八一活动，此后，制作以低碳节能减排为主题的宣传单在社区内分发讲解，在8月4日上午又参与滨河社区的天然气正确使用的宣传，于当日傍晚举办小型知识问答活动。其中部分活动照片刊登于滨河社区公众号。 "," 团队负责人\t黄海天\t计算机学院、网络空间安全学院\t计算机类 队员1\t顾俊宇\t遥感与测绘工程学院\t地理空间信息工程 队员2\t杨洋\t电子与信息工程学院\t电子信息类"," 相晨 计算机学院、网络空间安全学院"," ","三"]
["计算机学院、网络空间安全学院",{"$f":"COUNTA($B$2:B31)","v":30},"南京信息工程大学计算机学院青年志愿者协会“红心‘宁’聚”小分队","党史学习教育","南京","2023.6.29-2023.7.5","2023年6月29日到7月5日前往南京大屠杀纪念馆，雨花台烈士陵园等地进行党史学习教育活动。","2023年6月29日前往南京大屠杀纪念馆，进行党史学习教育活动。\n2023年6月30日前往雨花台烈士陵园，进行党史学习教育活动。2023年7月1日前往渡江战役胜利纪念馆，进行党史学习教育活动。\n2023年7月2日前往南京工运纪念馆，进行党史学习教育活动。2023年7月3日前往中山陵，进行党史学习教育活动。\n2023年7月4日前往新四军第一支队司令部纪念馆，进行党史学习教育活动。2023年7月5日我们来到颐和路社区将军馆，进行党史学习教育活动。","团队负责人\t王攀圣\t计算机学院、网络空间安全学院 \n队员1\t张倩月\t计算机学院、网络空间安全学院 \n队员2\t刘可\t计算机学院、网络空间安全学院 \n队员3\t吴文轩\t软件学院 队员4\t刘宝中\t计算机学院、网络空间安全学院 \n队员5\t朱虹燕\t计算机学院、网络空间安全学院 \n队员6\t徐锦浩\t计算机学院、网络空间安全学院 \n队员7\t徐一凡\t计算机学院、网络空间安全学院 \n队员8\t方艺博\t计算机学院、网络空间安全学院","王翔 南京信息工程大学计算机、网络空间安全学院","院级：1次","三"]
["计算机学院、网络空间安全学院",{"$f":"COUNTA($B$2:B32)","v":31},"南京信息工程大学计算机学院、网络空间安全学院“旧日足迹”小分队","党史学习教育","南京、泰州靖江","2023.7.15-2023.7.20","7月15日到19日前往渡江战疫纪念馆等地调研","7月15日，进行考察前期准备，研究了渡江战役的背景和重要性。\n7月16日。正式参观渡江战役纪念馆。\n7月17日，一起观看电影《建党伟业》，了解党的发展历史。\n7月18日，一起学习党史，了解党的艰苦奋斗精神。\n7月19日，为去农村考察查阅相关资料，确定地点，撰写计划。\n","团队负责人\t闻铭\t计算机学院、网络空间安全学院\t计算机科学与技术 队员1\t江佳壕\t计算机学院、网络空间安全学院\t计算机科学与技术 队员2\t王韦博\t计算机学院、网络空间安全学院\t计算机科学与技术 队员3\t王天祺\t计算机学院、网络空间安全学院\t计算机科学与技术 队员4\t潘相君\t计算机学院、网络空间安全学院\t计算机科学与技术","张乐涵 计算机学院、网络空间安全学院"," ","三"]
["计算机学院、网络空间安全学院",{"$f":"COUNTA($B$2:B33)","v":32},"南京信息工程大学社团联合会风行小分队","党史学习教育 "," 南京","2023.7.15-2023.7.25 "," 2023.7.15-2023.7.25前往常州市革命烈士陵园等地"," 2023年7月15日前往参观抗日民主政府纪念馆。\n2023年7月17日前往参观常州市革命烈士陵园。\n2023年7月19日前往参观徐州市淮海战役烈士纪念塔。\n2023年7月20日组织观看电影《长津湖》、《红旗漫卷西风》、《红孩子》等，并交流讨论观后感。\n2023年7月22日观看红色纪录片《红色故事汇》、《红色传奇》、《旗帜》等。"," 团队负责人 程海桐\t计算机学院\t计算机科学与技术专业 \n队员1\t曹若莹\t计算机学院\t计算机科学与技术专业 \n队员2\t王文格\t计算机学院\t计算机科学与技术专业 \n队员3\t孙杨\t计算机学院\t计算机科学与技术专业\n","  王一飞南京信息工程大学社团联合会"," ","三"]
["计算机学院、网络空间安全学院",{"$f":"COUNTA($B$2:B34)","v":33},"南京信息工程大学计算机学院节能减排宣讲小分队"," 节能减排宣讲","江阴 ","2023.8.01-2023.8.07"," 8月1号到4号开展节能减排宣讲活动"," 8月1号：团队观看节能减排宣传片，制作宣传单，制作相关调查问卷，为节能减排宣讲做准备。8月2号：团队来到江峰社区，在社区做相关志愿服务工作，维护社区的环境。8月3号：团队下发调查问卷和节能减排宣传单，提高居民节能减排意识。8月4号：在江峰社区举办“节能减排，绿色生活”相关讲座，鼓励居民参加。","团队负责人\t杨欣儒\t、网络空间安全学院\t信息安全 \n队员1\t樊艺枝\t计算机学院、网络空间安全学院\t计算机科学与技术 \n队员2\t徐浩植\t长望学院\t电子信息类 \n队员3\t李子言\t雷丁学院\t环境工程"," 相晨  计算机学院\n18751958299"," 校级：1次","三"]
["计算机学院、网络空间安全学院",{"$f":"COUNTA($B$2:B35)","v":34},"南京信息工程大学计算机学院 “追溯红色梅园”小分队","党史学习教育","南京","2023.7.4-2023.7.10","2023年7.4前往南京市梅园新村纪念馆参观了解。在此之前，我们要先上网搜集相关历史资料、场馆详情、注意事项等等，并且网上查询与该场馆有关的部门、人物，以对该馆背后的历史做更深入的了解（如果可以的话）。同时我们也明确了我们这次社会实践的目的：在提升个人对红色记忆的了解的同时，唤醒大众对红色历程的鲜活记忆。让红色之花开遍神州大地，让红色梅园在每个人的心中开出红色的梅花，展现中华儿女的高洁风骨。革命英烈们对为之奋斗的真理始终忠诚坚贞，矢志不渝，用鲜血和生命谱写出了一曲曲壮烈的篇章。我们青年人在面对选择的时候也要不忘初心，用我们的踏实努力践行自己的人生信条，拥抱美好的未来！","我们小队初步统筹了大家的时间、分工，部分在京成员决定于7.5这天前往南京市梅园新村纪念馆参观了解。在此之前，我们要先上网搜集相关历史资料、场馆详情、注意事项等等，并且网上查询与该场馆有关的部门、人物，以对该馆背后的历史做更深入的了解（如果可以的话）。同时我们也明确了我们这次社会实践的目的：在提升个人对红色记忆的了解的同时，唤醒大众对红色历程的鲜活记忆。让红色之花开遍神州大地，让红色梅园在每个人的心中开出红色的梅花，展现中华儿女的高洁风骨。革命英烈们对为之奋斗的真理始终忠诚坚贞，矢志不渝，用鲜血和生命谱写出了一曲曲壮烈的篇章。我们青年人在面对选择的时候也要不忘初心，用我们的踏实努力践行自己的人生信条，拥抱美好的未来！","张洋 计算机学院、网络空间安全学院 团队负责人\n肖濠宇 软件学院 成员\n周宸毅 软件学院 成员\n席蓝淳 软件学院 成员\n曾宇 计算机学院、网络空间安全学院 成员\n许小峰 管理工程学院 成员\n王柚睎 管理工程学院 成员\n张晓广 自动化学院 成员\n张善友 人工智能学院 成员\n许润洋 电子与信息工程学院 成员","李家 计算机学院 17602501258"," ","三"]
["计算机学院、网络空间安全学院",{"$f":"COUNTA($B$2:B36)","v":35},"南京信息工程大学计算机学院“红色扬州路”小分队","\n1.党史学习教育\n2.乡村振兴促进\n3.发展成就观察\n4.民族团结实践\n\n","扬州","2023.7.20-2023.7.30","2023年7月20至26日，前往扬州市高邮市仪征市开展社会实践活动","2023年7月20至27日，前往扬州市高邮市仪征市开展社会实践活动","吴少晨 计算机学院、网络空间安全学院 团队负责人\n冯鑫磊 管理工程学院 成员\n陈政 计算机学院、网络空间安全学院 成员\n何建华 计算机学院、网络空间安全学院 成员\n李源旻 计算机学院、网络空间安全学院 成员\n沈畅 计算机学院、网络空间安全学院 成员","刘晓峰 校团委 13585103947"," ","三"]